Cogmind - Beta 12 @@@ ROGUE MODE // 2023.04.17 @ 12:15:34 Player: ZLD1 Result: Destroyed by G-47 Trooper with Particle Gun Performance ------------- Evolutions (2) 1000 Regions Visited (6) 1200 Robots Destroyed (43) 215 Value Destroyed (1399) 1399 Prototype IDs (26) 520 Alien Tech Used (0) 0 Bonus (311) 311 TOTAL SCORE: 4645 Bonus ------- High Alert Combat Kills 11 Aligned with FarCom 300 Cogmind --------- Core Integrity 0/550 Matter 205/300 Energy 279/280 System Corruption 10% Temperature Cool (84) Movement Core (100) Ox1 Location -8/Storage Parts ------- > --- POWER (1) -------- Heavy Ion Engine > --- PROPULSION (4) --- (None) > --- UTILITY (4) ------ Medium Storage Unit Gravity Neutralizer 0b10 Alert Chip > --- WEAPON (2) ------- Enhanced Autogun Heavy Flail > --- INVENTORY (10) --- Improved Ion Engine Light Deuterium Engine Light Nuclear Core Aluminum Leg Cryofiber Web Medium Storage Unit Melee Analysis Suite Peak State ------------ > --- POWER ------------ Heavy Ion Engine > --- PROPULSION ------- Aluminum Leg Improved Aluminum Leg Improved Aluminum Leg Carbon-fiber Leg > --- UTILITY ---------- Advanced Heat Sink Medium Storage Unit Signal Interpreter 0b10 Alert Chip > --- WEAPON ----------- Enhanced Autogun Katana > --- INVENTORY -------- Improved Ion Engine Light Deuterium Engine Light Nuclear Core Aluminum Leg Aluminum Leg Cryofiber Web Medium Storage Unit Gravity Neutralizer Melee Analysis Suite Heavy Flail [Rating: 33] Favorites ----------- Power Light Nuclear Core Engine Light Ion Engine Power Core Light Nuclear Core Propulsion Aluminum Leg Leg Aluminum Leg Flight Unit Flight Unit Utility Signal Interpreter Device Advanced Heat Sink Storage Small Storage Unit Processor Signal Interpreter Weapon Small Laser Energy Gun Small Laser Ballistic Gun Autogun Ballistic Cannon Battle Cannon Impact Weapon Heavy Flail Slashing Weapon Katana Build | -11 -10 -10 -10 -9 -8 -8 ------- Run | Jun Mat Min Exi Min Mat Sto Slots Evolved 4 | . . . . . 4 . Power . | . . . . . . . Propulsion 2 | . . . . . 2 . Utility 2 | . . . . . 2 . Weapon . | . . . . . . . Parts Attached 54 | 6 . 6 1 . 31 10 Power 7 | 1 . 2 . . 3 1 Engine 4 | 1 . 1 . . 1 1 Core 3 | . . 1 . . 2 . Reactor . | . . . . . . . Propulsion 21 | 2 . 1 . . 15 3 Treads . | . . . . . . . Leg 16 | 2 . 1 . . 10 3 Wheel . | . . . . . . . Hover . | . . . . . . . Flight 5 | . . . . . 5 . Utility 6 | 1 . 1 . . 3 1 Device 2 | . . . . . 1 1 Storage 2 | 1 . . . . 1 . Processor 2 | . . 1 . . 1 . Hackware . | . . . . . . . Protection . | . . . . . . . Artifact . | . . . . . . . Weapon 20 | 2 . 2 1 . 10 5 Energy Gun 6 | 2 . . 1 . 3 . Energy Cannon . | . . . . . . . Ballistic Gun 8 | . . 1 . . 5 2 Ballistic Cannon 3 | . . 1 . . 2 . Launcher . | . . . . . . . Special Weapon . | . . . . . . . Impact Weapon 2 | . . . . . . 2 Slashing Weapon 1 | . . . . . . 1 Piercing Weapon . | . . . . . . . Special Melee Weapon . | . . . . . . . Unidentified Prototypes 3 | . . . . . . 3 Parts Lost 24 | . . 3 . . 12 9 Power 4 | . . 2 . . 2 . Propulsion 12 | . . . . . 6 6 Utility 2 | . . . . . . 2 Weapon 6 | . . 1 . . 4 1 Highest Loss Streak 8 | . . 2 . . 6 8 To Critical Strikes . | . . . . . . . Average Slot Usage (%) 85 | . 85 93 100 100 68 95 Engine 6 | . 14 10 . . 4 6 Core 4 | . . 2 14 14 3 2 Leg 24 | . 28 28 28 28 16 32 Flight 2 | . . . . . 6 . Device 2 | . . . . . 2 9 Storage 11 | . 14 14 14 14 9 9 Processor 10 | . . 8 14 14 10 16 Energy Gun 11 | . 28 22 6 14 5 1 Ballistic Gun 5 | . . 2 7 . 8 2 Ballistic Cannon 3 | . . 3 14 14 1 . Impact Weapon 1 | . . . . . . 7 Naked Turns . | . . . . . . . Heaviest Build 25 | 10 10 14 18 18 22 25 Greatest Support 53 | 20 20 27 27 27 53 51 Greatest Overweight (x) 6 | . . . . . 6 . Average Overweight (x) . | . . . . . . . Largest Inventory Capacity 10 | 8 8 8 8 8 10 10 Average Capacity 8 | 6 8 8 8 8 8 10 Most Carried 10 | 5 1 8 8 8 10 10 Average Carried 7 | 2 1 6 7 8 7 9 Final Capacity 10 | 8 8 8 8 8 10 10 Final Carried 10 | 1 1 8 8 8 10 7 Class Distribution -------------------- 74% | Mutant 25% | Scavenger-Mutant Dominant Class ---------------- Mutant | -10/Materials Mutant | -10/Mines Mutant | -10/Exiles Mutant | -9/Mines Mutant | -8/Materials Scavenger-Mutant | -8/Storage Resources | -11 -10 -10 -10 -9 -8 -8 ----------- Run | Jun Mat Min Exi Min Mat Sto Matter Collected 988 | 46 . 129 . 3 735 75 Remotely . | . . . . . . . Salvage Created 1768 | . . 237 . 69 929 533 Parts 96 | . . 16 . 8 49 23 Haulers Intercepted . | . . . . . . . Recyclers Shooed 3 | . . . . . 3 . Parts Field Recycled . | . . . . . . . Retrieved Matter . | . . . . . . . Parts Self-Destructed . | . . . . . . . Prevented . | . . . . . . . Kills | -11 -10 -10 -10 -9 -8 -8 ------- Run | Jun Mat Min Exi Min Mat Sto Combat Hostiles Destroyed 34 | . . 6 . 2 17 9 Melee 5 | . . . . . . 5 Guns 23 | . . 4 . 1 14 4 Cannons 5 | . . 1 . 1 3 . AOE 1 | . . 1 . . . . Classes Destroyed 9 | . . 3 . . 5 1 Worker 4 | . . 3 . . 1 . Recycler 4 | . . . . . 2 2 Watcher 1 | . . . . . 1 . Swarmer 6 | . . 2 . . 4 . Grunt 21 | . . 4 . 2 8 7 Brawler 1 | . . . . . . 1 Duelist 1 | . . . . . 1 . Sentry 4 | . . . . . 3 1 Hunter 1 | . . . . . 1 . Best Kill Streak 9 | . . 5 . 2 9 4 Combat Bots Only 6 | . . 3 . 2 6 4 Max Kills in Single Turn 2 | . . 1 . 1 2 1 Gunslinging 1 | . . . . . 1 . Exploded 1 | . . 1 . . . . Melee 1 | . . . . . . 1 Uniques/NPCs Destroyed . | . . . . . . . Combat | -11 -10 -10 -10 -9 -8 -8 -------- Run | Jun Mat Min Exi Min Mat Sto Damage Taken 3345 | . . 627 . 75 1545 1098 Core 678 | . . 108 . 18 318 234 Absorbed by Shields . | . . . . . . . Regen/Repaired (Parts) 16 | . . . . . 16 . Core Remaining (%) 74 | 100 . . . 49 . . Volleys Fired 117 | . . 22 . 4 64 27 Largest 2 | . . 2 . 2 2 1 Hottest 119 | . . 80 . 114 119 25 Shots Fired 188 | . . 44 . 8 111 25 Gun 159 | . . 34 . 4 96 25 Cannon 29 | . . 10 . 4 15 . Launcher . | . . . . . . . Special . | . . . . . . . Kinetic 128 | . . 10 . 4 89 25 Thermal 60 | . . 34 . 4 22 . Explosive . | . . . . . . . Electromagnetic . | . . . . . . . Robot Hit Streak 20 | . . 4 . 6 15 20 Robot Miss Streak 4 | . . 4 . 1 3 4 Penetration Max . | . . . . . . . Secondary Targets 3 | . . . . . 3 . Max Gunslinging Chain 1 | . . . . . 1 . Shots Hit Robots 137 | . . 24 . 5 74 34 Core Hits 73 | . . 16 . 3 39 15 Critical Kills 2 | . . . . . 1 1 Critical Parts Destroyed . | . . . . . . . Critical Strikes 4 | . . 1 . 1 1 1 Destroy 1 | . . . . . 1 . Blast 2 | . . 1 . 1 . . Smash 1 | . . . . . . 1 Melee Attacks 25 | . . . . . . 25 Impact 13 | . . . . . . 13 Slashing 12 | . . . . . . 12 Piercing . | . . . . . . . Sneak Attacks 2 | . . . . . . 2 Combat Hostiles . | . . . . . . . Follow-up Attacks 5 | . . . . . . 5 Damage Inflicted 3001 | . . 475 . 130 1339 1057 Guns 1732 | . . 238 . 40 1134 320 Cannons 403 | . . 138 . 90 175 . Explosions 88 | . . 88 . . . . Melee 737 | . . . . . . 737 Ramming 41 | . . 11 . . 30 . Kinetic 1578 | . . 138 . 90 1030 320 Thermal 645 | . . 326 . 40 279 . Explosive . | . . . . . . . Electromagnetic . | . . . . . . . Impact 430 | . . . . . . 430 Slashing 307 | . . . . . . 307 Piercing . | . . . . . . . Highest Corruption 10 | . . . . . . 10 Average Corruption 2 | . . . . . . 2 Corruption Purged . | . . . . . . . Corruption Blocked . | . . . . . . . Effects 7 | . . . . . . 7 Message Errors 2 | . . . . . . 2 Matter Fused 1 | . . . . . . 1 Heat Flow Errors 2 | . . . . . . 2 Weapon Failures 2 | . . . . . . 2 Overload Shots . | . . . . . . . Overflow Damage 153 | . . 26 . . . 127 Projectiles 26 | . . 26 . . . . Explosions . | . . . . . . . Melee 127 | . . . . . . 127 Knockbacks 6 | . . 4 . . . 2 Impact 2 | . . . . . . 2 Kinetic 3 | . . 3 . . . . Secondary 1 | . . 1 . . . . Self-Inflicted Damage . | . . . . . . . Shots . | . . . . . . . Rammed 2 | . . . . . 2 . Targets Rammed 20 | . . 5 . . 15 . Kicked 18 | . . 5 . . 13 . Crushed . | . . . . . . . Highest Temperature 282 | . . 282 . 210 90 190 Average Temperature 99 | . . 129 . 95 30 109 Received Heat Transfer 1443 | . . 234 . 39 558 612 Siege Activations . | . . . . . . . Robots Corrupted . | . . . . . . . Combat Hostiles . | . . . . . . . Parts Fried . | . . . . . . . Impact Corruptions 3 | . . . . . . 3 Robots Melted . | . . . . . . . Combat Hostiles . | . . . . . . . Parts Melted 2 | . . 1 . . 1 . Heat Transferred 1403 | . . 700 . 74 629 . Parts Sabotaged . | . . . . . . . Parts Stolen . | . . . . . . . Parts Stripped . | . . . . . . . Power Chain Reactions . | . . . . . . . Missiles Intercepted . | . . . . . . . Alert | -11 -10 -10 -10 -9 -8 -8 ------- Run | Jun Mat Min Exi Min Mat Sto Peak Influence 430 | . 15 160 . 55 430 314 Initial 118 | . . 5 . . 21 118 Average 112 | . 5 65 . 49 145 189 Maximum Alert Level 2 | . . . . . 2 1 Low Security (%) 85 | 100 100 100 . 100 74 68 Level 1 9 | . . . . . 11 31 Level 2 5 | . . . . . 13 . Level 3 . | . . . . . . . Level 4 . | . . . . . . . Level 5 . | . . . . . . . High Security . | . . . . . . . Max Security . | . . . . . . . Squads Dispatched 2 | . 1 . . . . 1 Investigation . | . . . . . . . Extermination . | . . . . . . . Reinforcement 2 | . 1 . . . . 1 Assault . | . . . . . . . Garrison . | . . . . . . . Intercept . | . . . . . . . Searches Triggered . | . . . . . . . Construction Impeded . | . . . . . . . Haulers Reinforced . | . . . . . . . Active Scanning Responses . | . . . . . . . Cargo Convoy Interrupts . | . . . . . . . Stealth | -11 -10 -10 -10 -9 -8 -8 --------- Run | Jun Mat Min Exi Min Mat Sto Distress Signals 3 | . 1 . . . 2 . Communications Jammed . | . . . . . . . Distress Signals . | . . . . . . . Times Spotted 57 | . 4 11 . 3 27 12 Peak Tracking Total 8 | . 4 5 . 3 8 7 Tactical Retreats 7 | . . 2 . 1 3 1 Traps | -11 -10 -10 -10 -9 -8 -8 ------- Run | Jun Mat Min Exi Min Mat Sto Traps Triggered 2 | . . 1 . . . 1 Indirectly . | . . . . . . . Trap Hack Attempts . | . . . . . . . Triggered . | . . . . . . . Disarmed . | . . . . . . . Reprogrammed . | . . . . . . . Reused . | . . . . . . . Traps Extracted . | . . . . . . . Installed . | . . . . . . . Triggered . | . . . . . . . Exploded 1 | . . . 1 . . . Machines | -11 -10 -10 -10 -9 -8 -8 ---------- Run | Jun Mat Min Exi Min Mat Sto Machines Disabled 3 | . . 2 . . . 1 Max in Single Turn 2 | . . 2 . . . 1 Machines Repaired . | . . . . . . . Machines Sabotaged . | . . . . . . . Overloaded Fab Kills . | . . . . . . . Hacking | -11 -10 -10 -10 -9 -8 -8 --------- Run | Jun Mat Min Exi Min Mat Sto Machines Accessed 4 | . . 1 1 . 1 1 Terminals 1 | . . . . . . 1 Fabricators . | . . . . . . . Repair Stations 1 | . . . . . 1 . Recycling Units . | . . . . . . . Scanalyzers . | . . . . . . . Garrison Access . | . . . . . . . Total Hacks 5 | . . 1 1 . 2 1 Successful 5 | . . 1 1 . 2 1 Failed . | . . . . . . . Catastrophic . | . . . . . . . Database Lockouts . | . . . . . . . Manual 1 | . . . 1 . . . Terminals 1 | . . . . . . 1 Fabricators . | . . . . . . . Repair Stations 2 | . . . . . 2 . Recycling Units . | . . . . . . . Scanalyzers . | . . . . . . . Garrison Access . | . . . . . . . Terminal Hacks 3 | . . 1 1 . . 1 Open Door 2 | . . 1 . . . 1 EX-Prototype ID Bank 1 | . . . 1 . . . Fabricator Hacks . | . . . . . . . Repair Station Hacks 2 | . . . . . 2 . Scan Component 1 | . . . . . 1 . Repair 1 | . . . . . 1 . Recycling Unit Hacks . | . . . . . . . Scanalyzer . | . . . . . . . Garrison Access Hacks . | . . . . . . . Unauthorized Hacks . | . . . . . . . Terminals . | . . . . . . . Fabricators . | . . . . . . . Repair Stations . | . . . . . . . Recycling Units . | . . . . . . . Scanalyzers . | . . . . . . . Garrison Access . | . . . . . . . Data Cores Recovered . | . . . . . . . Used . | . . . . . . . Hacking Detections . | . . . . . . . Full Trace Events . | . . . . . . . Feedback Events . | . . . . . . . Feedback Blocked . | . . . . . . . Robot Schematics Acquired . | . . . . . . . Robots Built . | . . . . . . . Authchips . | . . . . . . . Time . | . . . . . . . Total Robot Build Rating . | . . . . . . . Part Schematics Acquired . | . . . . . . . Parts Built . | . . . . . . . Authchips . | . . . . . . . Time . | . . . . . . . Total Part Build Rating . | . . . . . . . Parts Repaired 1 | . . . . . 1 . Time 26 | . . . . . 26 . Parts Recycled . | . . . . . . . Recycled Matter . | . . . . . . . Retrieved Matter . | . . . . . . . Retrieved Components . | . . . . . . . Parts Scanalyzed . | . . . . . . . Part Schematics Acquired . | . . . . . . . Parts Damaged . | . . . . . . . Bothacking | -11 -10 -10 -10 -9 -8 -8 ------------ Run | Jun Mat Min Exi Min Mat Sto Used RIF Installer . | . . . . . . . Robots Hacked . | . . . . . . . Non-combat . | . . . . . . . Combat . | . . . . . . . Robot Hacks Applied . | . . . . . . . Relay Couplers Released . | . . . . . . . Fabnet Peak Effective % . | . . . . . . . Robots Rewired . | . . . . . . . Allies Hacked . | . . . . . . . Hacks Repelled . | . . . . . . . Allies | -11 -10 -10 -10 -9 -8 -8 -------- Run | Jun Mat Min Exi Min Mat Sto Total Allies . | . . . . . . . Largest Group . | . . . . . . . Highest-Rated Group . | . . . . . . . Highest-Rated Ally . | . . . . . . . Total Orders . | . . . . . . . Ally Attacks . | . . . . . . . Total Damage . | . . . . . . . Kills . | . . . . . . . Allies Corrupted . | . . . . . . . Allies Melted . | . . . . . . . Intel | -11 -10 -10 -10 -9 -8 -8 ------- Run | Jun Mat Min Exi Min Mat Sto Robot Analysis Total . | . . . . . . . Derelict Logs Recovered 2 | . . 1 . 1 . . Drone Launches . | . . . . . . . Drone Recoveries . | . . . . . . . Exploration | -11 -10 -10 -10 -9 -8 -8 ------------- Run | Jun Mat Min Exi Min Mat Sto Turns Passed 2482 | 43 54 812 278 105 831 359 Spaces Moved 1380 | 43 46 575 221 75 299 121 Core 58 | 28 . . . . 30 . Treads . | . . . . . . . Legs 1293 | 15 46 575 221 75 240 121 Wheels . | . . . . . . . Hover . | . . . . . . . Flight 29 | . . . . . 29 . Fastest Speed 34 | 50 120 120 125 125 34 120 Average Speed 127 | 74 120 124 125 125 149 120 Slowest Speed 350 | 120 120 125 125 125 350 120 Overloaded Moves . | . . . . . . . Propulsion Burnouts . | . . . . . . . Robots Hopped . | . . . . . . . Cave-ins Triggered . | . . . . . . . Exploration Rate (%) 36 | 4 20 92 64 28 16 31 Regions Visited 6 Branch Regions 4 Pre-discovered Areas 1 | . . 1 . . . . Known Exits Taken 4 | . . 1 1 1 1 . Unknown Exits Taken 2 | 1 1 . . . . . Scrap Searched 1 | . . 1 . . . . Spaces Dug . | . . . . . . . Terrain Destroyed 17 | . . 11 . . 6 . Melee . | . . . . . . . Projectile 7 | . . 1 . . 6 . AOE 10 | . . 10 . . . . Terrain Rammed . | . . . . . . . Walls Destroyed . | . . . . . . . Machines Disabled . | . . . . . . . Actions | -11 -10 -10 -10 -9 -8 -8 --------- Run | Jun Mat Min Exi Min Mat Sto Total 1881 | 53 45 625 223 78 567 290 Wait 240 | . . 4 . . 128 108 Move 1374 | 42 45 574 220 74 298 121 Hop . | . . . . . . . Pick Up 40 | 5 . 12 1 . 20 2 Fast Attach 10 | 2 . 1 . . 5 2 Attach 31 | 4 . 4 1 . 19 3 Detach 4 | . . . . . 4 . Swap 13 | . . 1 . . 7 5 Drop 14 | . . 2 1 . 7 4 Fire 117 | . . 22 . 4 64 27 Melee 18 | . . . . . . 18 Ram 2 | . . . . . 2 . Kick 18 | . . 5 . . 13 . Crush . | . . . . . . . Escape Stasis . | . . . . . . . Rewire . | . . . . . . . Trap . | . . . . . . . Miscellaneous . | . . . . . . . Route ------- -11/Junkyard -10/Materials -10/Mines (discovered 3 exits: *Mat x2 / *Exi) -10/Exiles -9/Mines -8/Materials -8/Storage History --------- Turn | Location | Event 29 | -11/Junkyard | Discovered new exit (range 12) 44 | -11/Junkyard | Entered Materials 82 | -10/Materials | Discovered new exit (range 13) 98 | -10/Materials | Entered Mines 125 | -10/Mines | A weapon hastily lodged in a ceiling crevice suddenly fell to the ground 154 | -10/Mines | Met a Derelict who couldn't figure out how to use a Trap Extractor 197 | -10/Mines | Learned Materials trap positions 288 | -10/Mines | Discovered new exit (range 10) 305 | -10/Mines | Build established: Mutant 331 | -10/Mines | Received a Rocket Launcher from a helpful Derelict 364 | -10/Mines | Learned location of Storage (-8) 565 | -10/Mines | Identified exit to Materials 641 | -10/Mines | Discovered exit to Materials (range 4) 905 | -10/Mines | Deemed a non-threat by the Exiles lab entrance 905 | -10/Mines | Discovered new exit (range 5) 908 | -10/Mines | Identified exit to Exiles 910 | -10/Mines | Entered Exiles 940 | -10/Exiles | Met 8R-AWN 959 | -10/Exiles | Met EX-HEX 1000 | -10/Exiles | Met EX-BIN 1014 | -10/Exiles | Aligned with FarCom system 1015 | -10/Exiles | Given EX-Vault access code 1044 | -10/Exiles | Opened EX-Vault 1056 | -10/Exiles | Found 0b10 Alert Chip 1084 | -10/Exiles | Warned to stay clear of 0b10 Research branches 1098 | -10/Exiles | Exiles lab attacked by MAIN.C 1170 | -10/Exiles | Discovered new exit (range 14) 1187 | -10/Exiles | Identified exit to Mines 1188 | -10/Exiles | Left Exiles lab with 0b10 Alert Chip 1188 | -10/Exiles | Entered Mines 1190 | -9/Mines | Core integrity fell below 50% 1265 | -9/Mines | Learned Materials emergency access door positions 1283 | -9/Mines | Discovered new exit (range 4) 1288 | -9/Mines | Identified exit to Materials 1293 | -9/Mines | Entered Materials 1293 | -8/Materials | Evolved 4 slots: Propulsion x2, Utility x2 1294 | -8/Materials | Loaded intel: 18 trap records 1338 | -8/Materials | Repaired Flight Unit 1451 | -8/Materials | Lost 3 parts (3n) 1783 | -8/Materials | Lost 6 parts (2p2n2w) 1921 | -8/Materials | Core integrity fell below 50% 2113 | -8/Materials | Discovered new exit (range 8) 2121 | -8/Materials | Identified exit to Storage 2124 | -8/Materials | Entered Storage 2192 | -8/Storage | Build established: Scavenger-Mutant 2421 | -8/Storage | System corruption reached 10% 2463 | -8/Storage | Core integrity fell below 20% 2483 | -8/Storage | Destroyed by G-47 Trooper with Particle Gun Last Messages --------------- 02453_ Critical hit (Burn: +37). 02454_ Identified Gravity Neutralizer. 02461_ Aluminum Leg destroyed. 02461_ K-01 Serf collects debris. 02461_ Critical hit (Burn: +37). 02462_ G-47 Trooper destroyed. 02463_ System corrupted: Heat flow error (+218). 02465_ Adv. Heat Sink destroyed. 02466_ K-01 Serf collects debris. 02469_ Critical hit (Burn: +37). 02469_ K-01 Serf collects debris. 02471_ U-05 Engineer builds a Door. 02472_ K-01 Serf collects debris. 02473_ G-47 Trooper knocked back. 02476_ K-01 Serf collects debris. 02477_ Aluminum Leg destroyed. 02479_ K-01 Serf collects debris. 02479_ Imp. Aluminum Leg destroyed. 02480_ System corrupted: Enh. Autogun jammed. 02483_ G-47 Trooper destroyed. Map ----- +----------------------------------------------------+ | ?????????????????????????????????????????????????? | | ?????????????????????????????????????????????????? | | ?????????????????????????????????????????????????? | | ?????????????????????????????????????????????????? | | ?????????????????????????????????????????????????? | | ?????????????????????????????????????????????????? | | ?????????????????????????????????????????????????? | | ?????????????????????????????????????????????????? | | ??????????? ???????????????????????#????????????? | | ??????????# #????????????????????" ????????????? | | ??????????# #???????????????????"" ?????????????? | | ??????????# #??# ? ????????????? ??????????????? | | ??????????# #??# ???????????? ??????????????? | | ??????????# #??? ??????????? ???????????????? | | ??????????# #??? ?????????? ????????????????? | | ??????????# ####+###+#########/######???????????? | | ???????#### w % #???????????? | | ???????# ##^ ^ = #???????????? | | ??????## ## """ #???????????? | | ??????#T ##^ """ ######## #########??????????? | | ?????###+## """ # # = #? ???????????? | | ?????# # #[% #? """ ??????????? | | ?????# % # /# # """ ??????????? | | ?????# % # # # """ #?????????? | | ?????# #####+##+## a[* g / Y #?????????? | | ?????# #* ## =%%@# # """ #?????????? | | ?????# #[! ## * # # """ ??????????? | | ?????# #%"""" ## k # #? """ ??????????? | | ?????# #!* ="" ## u # #? ???????????? | | ###### # "=[""" ## # #??#### #??????????? | | # # """[=" ## !=u# #???????#??????????? | | # # ??[[" ## a[/*%# #??????????????????? | | # # ???"" ## %[*!# #??????????????????? | | # # ????? ######+## #??????????????????? | | # ###?????##????#%! #??????????????????? | | + #?????????????#%! ########## ?????? | | # #?????????????#* ?????? | | # #??????????#### T??????? | | # #???????+ ?????? | | #^^ #???????# #########+########### ?????? | | % # #????????????????? ???????????????????? | | #####????????????????? ???????????????????? | | ######???????????????????? ??????????????????? | | ?????????????????????????? ??????????????????? | | ?????????????????????????""" """?????????????????? | | ?????????????????????????""" """?????????????????? | | ???????????????????????? """ """ ????????????????? | | ???????????????????????? ????????????????? | | ???????????????????????????#"Y???????????????????? | | ????????????????????????????""???????????????????? | +----------------------------------------------------+ Best States ------------- Heat Dissipation 50 Energy Generation 14 Energy Capacity 280 Matter Stores 300 Matter Capacity 300 Sight Range 16 Terrain Scan Density 10 Additional Mass Support 12 Evasion (%) 63 Item Schematics ----------------- None Robot Schematics ------------------ None Fabricated ------------ Nothing Alien Tech Used ----------------- None Achievements -------------- None Challenges ------------ None Game ------ Seed AluminumPointySheargun Manual? 0 Play Time 00:22:35 Cumulative 35.2 hours Start 2023.04.17 @ 11:47:21 End 2023.04.17 @ 12:15:34 Sessions 1 Manual Loads 0 Difficulty Rogue Special Mode None Game No. 77 Rogue 77 Adventurer 0 Explorer 0 Win Type - Total 0 Types 0/0/0/0/0/0/0/0/0 Lore% 24 Gallery% 37 Achievement% 27 Wizard Run 0 Options --------- ASCII 0 Keyboard 0 Movement Mouse Keybinds 0 Fullscreen 1 Font 24/Smallcaps Map View 64x52 Tactical HUD 1 Map Filters NONE Filters NONE Steam 1 RUN: e58341b8-2486-4e74-a6fd-62dbbb30ee91